[Event "*** Titled Tuesday Blitz"]
[Site "Chess.com"]
[Date "2021.04.06"]
[Round "9"]
[White "Kostya_Nikologorskiy"]
[Black "GigaQuparadze"]
[Result "1/2-1/2"]
[WhiteElo "2693"]
[BlackElo "2850"]
[TimeControl "180+1"]
[EndTime "11:47:08 PDT"]
[Termination "Game drawn by repetition"]

1. d4 {[%clk 0:03:00.9]} 1... Nf6 {[%clk 0:02:59.9]} 2. Bf4 {[%clk 0:02:54.6]}
2... e6 {[%clk 0:02:56.3]} 3. Nd2 {[%clk 0:02:48.9]} 3... c5 {[%clk 0:02:56]} 4.
e3 {[%clk 0:02:47.8]} 4... Nc6 {[%clk 0:02:55.8]} 5. c3 {[%clk 0:02:47.2]} 5...
d5 {[%clk 0:02:56]} 6. Ngf3 {[%clk 0:02:47.6]} 6... Be7 {[%clk 0:02:55.5]} 7.
Bd3 {[%clk 0:02:45.3]} 7... Nh5 {[%clk 0:02:52.3]} 8. Be5 {[%clk 0:02:44]} 8...
Nxe5 {[%clk 0:02:47.6]} 9. Nxe5 {[%clk 0:02:43.5]} 9... Nf6 {[%clk 0:02:47.6]}
10. O-O {[%clk 0:02:30.1]} 10... O-O {[%clk 0:02:47.2]} 11. f4 {[%clk
0:02:28.2]} 11... Bd6 {[%clk 0:02:47.3]} 12. Qf3 {[%clk 0:02:22.4]} 12... b6
{[%clk 0:02:40.6]} 13. Qh3 {[%clk 0:02:15.5]} 13... a5 {[%clk 0:02:39.9]} 14.
Bc2 {[%clk 0:02:09.9]} 14... Bb7 {[%clk 0:02:36.3]} 15. Ndf3 {[%clk 0:02:04.2]}
15... Ne4 {[%clk 0:02:30.4]} 16. Ng5 {[%clk 0:01:51.4]} 16... h6 {[%clk
0:02:30.2]} 17. Nxe6 {[%clk 0:01:10.8]} 17... fxe6 {[%clk 0:02:25.7]} 18. Qxe6+
{[%clk 0:01:11.7]} 18... Kh7 {[%clk 0:02:25]} 19. Qg6+ {[%clk 0:01:08.9]} 19...
Kh8 {[%clk 0:02:22]} 20. Nf7+ {[%clk 0:01:08]} 20... Rxf7 {[%clk 0:02:21.8]} 21.
Qxf7 {[%clk 0:01:08.9]} 21... Bc6 {[%clk 0:02:20.8]} 22. Rf3 {[%clk 0:01:05.2]}
22... Qf6 {[%clk 0:02:17.8]} 23. Qxf6 {[%clk 0:01:03.3]} 23... Nxf6 {[%clk
0:02:18.7]} 24. h3 {[%clk 0:01:00.2]} 24... Re8 {[%clk 0:02:18.2]} 25. Raf1
{[%clk 0:00:59.2]} 25... c4 {[%clk 0:02:18.2]} 26. g4 {[%clk 0:00:58.8]} 26...
b5 {[%clk 0:02:17.3]} 27. g5 {[%clk 0:00:56.6]} 27... Ne4 {[%clk 0:02:17.2]} 28.
Bxe4 {[%clk 0:00:57.2]} 28... Rxe4 {[%clk 0:02:16.7]} 29. Kf2 {[%clk 0:00:56]}
29... Bd7 {[%clk 0:02:16.5]} 30. gxh6 {[%clk 0:00:55]} 30... gxh6 {[%clk
0:02:16.6]} 31. f5 {[%clk 0:00:54.9]} 31... Kg7 {[%clk 0:02:05.6]} 32. Rg1+
{[%clk 0:00:54.9]} 32... Kf7 {[%clk 0:02:05.9]} 33. Rg6 {[%clk 0:00:54.9]} 33...
Bf8 {[%clk 0:02:05.6]} 34. Ra6 {[%clk 0:00:54.2]} 34... a4 {[%clk 0:02:04.2]}
35. Ra7 {[%clk 0:00:53.4]} 35... Ke8 {[%clk 0:02:04]} 36. f6 {[%clk 0:00:53.5]}
36... Re6 {[%clk 0:02:00.7]} 37. Rf5 {[%clk 0:00:45.1]} 37... Rd6 {[%clk
0:02:00.6]} 38. f7+ {[%clk 0:00:35]} 38... Ke7 {[%clk 0:02:00]} 39. Rf4 {[%clk
0:00:30.1]} 39... Rg6 {[%clk 0:01:54.9]} 40. e4 {[%clk 0:00:28.1]} 40... dxe4
{[%clk 0:01:38.3]} 41. Rxe4+ {[%clk 0:00:29]} 41... Kd6 {[%clk 0:01:38.7]} 42.
Ke3 {[%clk 0:00:22.4]} 42... Rf6 {[%clk 0:01:34.1]} 43. Rf4 {[%clk 0:00:20.4]}
43... Rxf4 {[%clk 0:01:28.3]} 44. Kxf4 {[%clk 0:00:21.3]} 44... Bxh3 {[%clk
0:01:28.3]} 45. Rb7 {[%clk 0:00:17]} 45... Bd7 {[%clk 0:01:25.2]} 46. d5 {[%clk
0:00:17.5]} 46... Ke7 {[%clk 0:01:12]} 47. Ke5 {[%clk 0:00:14.9]} 47... Bg7+
{[%clk 0:01:11.9]} 48. Ke4 {[%clk 0:00:15.5]} 48... h5 {[%clk 0:01:04.5]} 49.
Kf4 {[%clk 0:00:15.4]} 49... h4 {[%clk 0:00:59]} 50. Kf3 {[%clk 0:00:07.4]}
50... h3 {[%clk 0:00:54.8]} 51. Kg3 {[%clk 0:00:07.7]} 51... Be5+ {[%clk
0:00:54.5]} 52. Kf2 {[%clk 0:00:07.1]} 52... Bg7 {[%clk 0:00:49.1]} 53. Kg3
{[%clk 0:00:07.7]} 53... Bf8 {[%clk 0:00:30.5]} 54. Kf3 {[%clk 0:00:07.6]} 54...
Bh6 {[%clk 0:00:27.3]} 55. Kg3 {[%clk 0:00:07.5]} 55... Bg7 {[%clk 0:00:27.6]}
56. Kf3 {[%clk 0:00:07.1]} 56... Kd6 {[%clk 0:00:19.6]} 57. Kg3 {[%clk
0:00:06.8]} 57... Bf8 {[%clk 0:00:16]} 58. Rb8 {[%clk 0:00:06.8]} 58... Ke7
{[%clk 0:00:15.5]} 59. Rb7 {[%clk 0:00:07.5]} 59... Bg7 {[%clk 0:00:10.9]} 60.
Kf3 {[%clk 0:00:05.7]} 60... Kd8 {[%clk 0:00:05.7]} 61. Rb8+ {[%clk 0:00:05.8]}
61... Ke7 {[%clk 0:00:05.2]} 62. Rb7 {[%clk 0:00:06]} 1/2-1/2

[Event "*** Titled Tuesday Blitz"]
[Site "Chess.com"]
[Date "2021.04.06"]
[Round "9"]
[White "SargissyanSargis"]
[Black "zajka-molotok"]
[Result "1-0"]
[WhiteElo "2392"]
[BlackElo "2511"]
[TimeControl "180+1"]
[EndTime "11:47:08 PDT"]
[Termination "SargissyanSargis won by checkmate"]

1. e4 {[%clk 0:03:00.9]} 1... d5 {[%clk 0:02:54.6]} 2. exd5 {[%clk 0:03:00.5]}
2... Qxd5 {[%clk 0:02:55.5]} 3. Nc3 {[%clk 0:03:00.3]} 3... Qd8 {[%clk
0:02:54.8]} 4. d4 {[%clk 0:03:00.6]} 4... Nf6 {[%clk 0:02:55]} 5. Nf3 {[%clk
0:03:01.1]} 5... g6 {[%clk 0:02:55]} 6. Bc4 {[%clk 0:02:59.3]} 6... Bg7 {[%clk
0:02:55]} 7. Ne5 {[%clk 0:03:00]} 7... O-O {[%clk 0:02:52.5]} 8. O-O {[%clk
0:03:00.3]} 8... Nbd7 {[%clk 0:02:50.5]} 9. Re1 {[%clk 0:02:33.6]} 9... e6
{[%clk 0:02:40.4]} 10. Bf4 {[%clk 0:02:11.4]} 10... Nxe5 {[%clk 0:02:36.5]} 11.
Bxe5 {[%clk 0:02:09.7]} 11... Bd7 {[%clk 0:02:35.6]} 12. Qf3 {[%clk 0:02:05.3]}
12... Bc6 {[%clk 0:02:33.9]} 13. Qf4 {[%clk 0:01:54.3]} 13... Nd5 {[%clk
0:02:29.6]} 14. Nxd5 {[%clk 0:01:49.8]} 14... Bxe5 {[%clk 0:02:27.1]} 15. Rxe5
{[%clk 0:01:44.4]} 15... exd5 {[%clk 0:02:17.6]} 16. Bd3 {[%clk 0:01:42.9]}
16... Qd6 {[%clk 0:02:17.2]} 17. Qe3 {[%clk 0:01:30.7]} 17... Rae8 {[%clk
0:02:14.1]} 18. Re1 {[%clk 0:01:30]} 18... f6 {[%clk 0:02:10.9]} 19. Re6 {[%clk
0:01:26.6]} 19... Rxe6 {[%clk 0:02:08]} 20. Qxe6+ {[%clk 0:01:26.2]} 20... Qxe6
{[%clk 0:02:08]} 21. Rxe6 {[%clk 0:01:26.7]} 21... Kf7 {[%clk 0:02:06.9]} 22.
Re3 {[%clk 0:01:26.1]} 22... Re8 {[%clk 0:01:56.3]} 23. Rxe8 {[%clk 0:01:23.6]}
23... Bxe8 {[%clk 0:01:56.1]} 24. f4 {[%clk 0:01:24]} 24... h6 {[%clk
0:01:49.4]} 25. Kf2 {[%clk 0:01:23.5]} 25... g5 {[%clk 0:01:49.2]} 26. Kg3
{[%clk 0:01:12.7]} 26... Bd7 {[%clk 0:01:44.8]} 27. h4 {[%clk 0:01:10]} 27... b6
{[%clk 0:01:41.1]} 28. c3 {[%clk 0:01:06.1]} 28... Ke7 {[%clk 0:01:38.1]} 29.
Be2 {[%clk 0:01:00.5]} 29... Bf5 {[%clk 0:01:34.3]} 30. Bg4 {[%clk 0:00:57.2]}
30... Bb1 {[%clk 0:01:33]} 31. Bf3 {[%clk 0:00:55.7]} 31... Bxa2 {[%clk
0:01:30.4]} 32. Kg4 {[%clk 0:00:50.9]} 32... gxf4 {[%clk 0:01:23.1]} 33. Kh5
{[%clk 0:00:48.6]} 33... c6 {[%clk 0:01:10.2]} 34. Kxh6 {[%clk 0:00:48.5]} 34...
Kf7 {[%clk 0:01:09.5]} 35. Bh5+ {[%clk 0:00:46.4]} 35... Ke7 {[%clk 0:00:56.8]}
36. Kg7 {[%clk 0:00:46]} 36... Bb1 {[%clk 0:00:56.2]} 37. Bg6 {[%clk 0:00:30.6]}
37... Bxg6 {[%clk 0:00:39.6]} 38. Kxg6 {[%clk 0:00:30.6]} 38... Kf8 {[%clk
0:00:40.1]} 39. Kxf6 {[%clk 0:00:31.1]} 39... a5 {[%clk 0:00:38.2]} 40. Ke6
{[%clk 0:00:17.8]} 40... Kg7 {[%clk 0:00:34.9]} 41. Kf5 {[%clk 0:00:17.6]} 41...
c5 {[%clk 0:00:29.5]} 42. dxc5 {[%clk 0:00:15.6]} 42... bxc5 {[%clk 0:00:30.4]}
43. Kxf4 {[%clk 0:00:15.9]} 43... Kf6 {[%clk 0:00:29]} 44. g4 {[%clk 0:00:15.6]}
44... a4 {[%clk 0:00:28.6]} 45. g5+ {[%clk 0:00:15.8]} 45... Kg6 {[%clk
0:00:27]} 46. Ke5 {[%clk 0:00:14.1]} 46... d4 {[%clk 0:00:25.5]} 47. cxd4 {[%clk
0:00:04.9]} 47... c4 {[%clk 0:00:25.9]} 48. d5 {[%clk 0:00:05.3]} 48... c3
{[%clk 0:00:25.9]} 49. bxc3 {[%clk 0:00:05]} 49... a3 {[%clk 0:00:26.4]} 50. d6
{[%clk 0:00:05.6]} 50... a2 {[%clk 0:00:26.8]} 51. d7 {[%clk 0:00:06.2]} 51...
a1=Q {[%clk 0:00:27]} 52. d8=Q {[%clk 0:00:06.6]} 52... Qxc3+ {[%clk 0:00:25.4]}
53. Qd4 {[%clk 0:00:07.1]} 53... Qg3+ {[%clk 0:00:22.4]} 54. Qf4 {[%clk
0:00:06.8]} 54... Qc3+ {[%clk 0:00:20.6]} 55. Qd4 {[%clk 0:00:06.9]} 55... Qg3+
{[%clk 0:00:20]} 56. Ke6 {[%clk 0:00:07.2]} 56... Qe1+ {[%clk 0:00:17.2]} 57.
Qe5 {[%clk 0:00:07.1]} 57... Qxh4 {[%clk 0:00:16]} 58. Qf6+ {[%clk 0:00:06.7]}
58... Kh7 {[%clk 0:00:04.4]} 59. g6+ {[%clk 0:00:05.6]} 59... Kg8 {[%clk
0:00:02.8]} 60. Qxh4 {[%clk 0:00:05]} 60... Kg7 {[%clk 0:00:02]} 61. Qh7+ {[%clk
0:00:04.9]} 61... Kf8 {[%clk 0:00:01.5]} 62. Qf7# {[%clk 0:00:04.7]} 1-0

[Event "*** Titled Tuesday Blitz"]
[Site "Chess.com"]
[Date "2021.04.06"]
[Round "9"]
[White "Jumbo"]
[Black "Genghis_K"]
[Result "0-1"]
[WhiteElo "2829"]
[BlackElo "2953"]
[TimeControl "180+1"]
[EndTime "11:47:11 PDT"]
[Termination "Genghis_K won by resignation"]

1. d4 {[%clk 0:03:00.9]} 1... Nf6 {[%clk 0:02:58]} 2. c4 {[%clk 0:03:01.4]} 2...
g6 {[%clk 0:02:58.7]} 3. Nf3 {[%clk 0:03:00.8]} 3... Bg7 {[%clk 0:02:59.4]} 4.
g3 {[%clk 0:03:01.4]} 4... O-O {[%clk 0:03:00.1]} 5. Bg2 {[%clk 0:03:02]} 5...
d6 {[%clk 0:03:01]} 6. O-O {[%clk 0:03:02.4]} 6... c6 {[%clk 0:03:01.8]} 7. Nc3
{[%clk 0:03:02.8]} 7... Bf5 {[%clk 0:03:01.9]} 8. Ng5 {[%clk 0:03:02.1]} 8... e5
{[%clk 0:03:01.1]} 9. d5 {[%clk 0:02:59.3]} 9... a5 {[%clk 0:02:55.8]} 10. e4
{[%clk 0:02:54.5]} 10... Bg4 {[%clk 0:02:54.4]} 11. Qb3 {[%clk 0:02:50.5]} 11...
Na6 {[%clk 0:02:52.5]} 12. Be3 {[%clk 0:02:40.9]} 12... Qc8 {[%clk 0:02:36.4]}
13. Rac1 {[%clk 0:02:20.9]} 13... h6 {[%clk 0:02:36.1]} 14. Nf3 {[%clk
0:02:20.1]} 14... Bh3 {[%clk 0:02:36.1]} 15. Bb6 {[%clk 0:02:09.4]} 15... Bxg2
{[%clk 0:02:27.2]} 16. Kxg2 {[%clk 0:02:09]} 16... Nd7 {[%clk 0:02:27.9]} 17.
Be3 {[%clk 0:01:48.6]} 17... Nac5 {[%clk 0:02:26.5]} 18. Qc2 {[%clk 0:01:46.8]}
18... f5 {[%clk 0:02:27.1]} 19. Rcd1 {[%clk 0:01:39.4]} 19... Qc7 {[%clk
0:02:22.1]} 20. exf5 {[%clk 0:01:36.4]} 20... gxf5 {[%clk 0:02:22.2]} 21. Nh4
{[%clk 0:01:36.4]} 21... e4 {[%clk 0:02:21.3]} 22. Qd2 {[%clk 0:01:17.1]} 22...
Kh7 {[%clk 0:02:13.6]} 23. dxc6 {[%clk 0:01:12.3]} 23... Qxc6 {[%clk 0:02:08.2]}
24. Qxd6 {[%clk 0:01:01.9]} 24... Nd3 {[%clk 0:02:08.8]} 25. Qxc6 {[%clk
0:00:45.6]} 25... bxc6 {[%clk 0:02:09.7]} 26. Na4 {[%clk 0:00:40.9]} 26... Rab8
{[%clk 0:02:02.4]} 27. b3 {[%clk 0:00:40.9]} 27... N7e5 {[%clk 0:02:03]} 28. Bb6
{[%clk 0:00:25]} 28... Rf7 {[%clk 0:01:55.3]} 29. Bxa5 {[%clk 0:00:18.4]} 29...
Nxc4 {[%clk 0:01:55.8]} 30. Bc3 {[%clk 0:00:08]} 30... Nce5 {[%clk 0:01:45.5]}
31. Rd2 {[%clk 0:00:07.3]} 31... f4 {[%clk 0:01:43.7]} 32. Rc2 {[%clk
0:00:07.4]} 32... Rd8 {[%clk 0:01:41.7]} 33. Bxe5 {[%clk 0:00:06.8]} 33... f3+
{[%clk 0:01:40.3]} 34. Kg1 {[%clk 0:00:06.5]} 34... Nxe5 {[%clk 0:01:40.8]} 35.
Nc5 {[%clk 0:00:04.7]} 35... Rd4 {[%clk 0:01:39.3]} 36. Re1 {[%clk 0:00:04.1]}
36... Ng4 {[%clk 0:01:25.7]} 37. h3 {[%clk 0:00:03.2]} 37... Nf6 {[%clk
0:01:16.2]} 38. Nf5 {[%clk 0:00:02.5]} 38... Rd5 {[%clk 0:01:16.9]} 39. Nxg7
{[%clk 0:00:02.5]} 39... Kxg7 {[%clk 0:01:17.2]} 40. Rc4 {[%clk 0:00:01.1]}
40... Re7 {[%clk 0:01:16.8]} 41. g4 {[%clk 0:00:01.6]} 41... h5 {[%clk
0:01:14.1]} 42. g5 {[%clk 0:00:01.7]} 42... Rxg5+ {[%clk 0:01:14.1]} 43. Kf1
{[%clk 0:00:01.8]} 43... Rge5 {[%clk 0:01:09.2]} 44. a4 {[%clk 0:00:02.1]} 44...
Kh6 {[%clk 0:01:07.1]} 45. a5 {[%clk 0:00:02.5]} 45... Rg7 {[%clk 0:01:07.7]}
46. Nxe4 {[%clk 0:00:01.8]} 46... Nd5 {[%clk 0:01:06.8]} 47. a6 {[%clk
0:00:02.1]} 47... Re6 {[%clk 0:01:05]} 48. Ng3 {[%clk 0:00:02.5]} 48... Reg6
{[%clk 0:00:56.1]} 49. Re5 {[%clk 0:00:02.3]} 49... Ra7 {[%clk 0:00:50.5]} 50.
Rxh5+ {[%clk 0:00:01.8]} 50... Kg7 {[%clk 0:00:51.2]} 51. Ra4 {[%clk 0:00:01.5]}
51... Nc3 {[%clk 0:00:46.4]} 52. Nf5+ {[%clk 0:00:02]} 52... Kf6 {[%clk
0:00:46.4]} 53. Rf4 {[%clk 0:00:02.2]} 53... Rxa6 {[%clk 0:00:43.2]} 54. Ne3+
{[%clk 0:00:02]} 54... Kg7 {[%clk 0:00:41.9]} 55. Nf5+ {[%clk 0:00:01.9]} 55...
Kf7 {[%clk 0:00:35.3]} 56. Nd4+ {[%clk 0:00:02.3]} 56... Kg8 {[%clk 0:00:32.8]}
57. Nxf3 {[%clk 0:00:02.6]} 57... Ra1+ {[%clk 0:00:32.9]} 58. Ne1 {[%clk
0:00:03.1]} 58... Re6 {[%clk 0:00:33.2]} 59. Rg4+ {[%clk 0:00:03.6]} 59... Kf8
{[%clk 0:00:32.7]} 60. Rf5+ {[%clk 0:00:04.2]} 60... Ke7 {[%clk 0:00:32]} 61.
Rg7+ {[%clk 0:00:04.1]} 61... Kd6 {[%clk 0:00:32.6]} 62. Kg2 {[%clk 0:00:04]}
62... Rexe1 {[%clk 0:00:32.3]} 63. Rg6+ {[%clk 0:00:03.8]} 63... Kc7 {[%clk
0:00:32.7]} 64. Rf7+ {[%clk 0:00:03.7]} 64... Kb6 {[%clk 0:00:31.8]} 65. Rff6
{[%clk 0:00:04.2]} 65... Rg1+ {[%clk 0:00:28.6]} 66. Kf3 {[%clk 0:00:04.8]}
66... Rxg6 {[%clk 0:00:29.2]} 67. Rxg6 {[%clk 0:00:05.7]} 67... Rb1 {[%clk
0:00:29.9]} 68. h4 {[%clk 0:00:06]} 68... Rxb3 {[%clk 0:00:30.3]} 69. h5 {[%clk
0:00:06.6]} 69... Nd5+ {[%clk 0:00:31]} 70. Kg4 {[%clk 0:00:06.9]} 70... Rb2
{[%clk 0:00:30.7]} 71. h6 {[%clk 0:00:03.9]} 71... Rxf2 {[%clk 0:00:30.1]} 72.
h7 {[%clk 0:00:04.3]} 72... Rh2 {[%clk 0:00:30.5]} 0-1

[Event "*** Titled Tuesday Blitz"]
[Site "Chess.com"]
[Date "2021.04.06"]
[Round "9"]
[White "Chessmasterzt"]
[Black "Willhaven3"]
[Result "1-0"]
[WhiteElo "2605"]
[BlackElo "2504"]
[TimeControl "180+1"]
[EndTime "11:47:11 PDT"]
[Termination "Chessmasterzt won by resignation"]

1. d4 {[%clk 0:02:58.5]} 1... Nf6 {[%clk 0:02:58.7]} 2. Nf3 {[%clk 0:02:57.7]}
2... e6 {[%clk 0:02:58.5]} 3. c4 {[%clk 0:02:57.1]} 3... d5 {[%clk 0:02:58.1]}
4. g3 {[%clk 0:02:56.8]} 4... Be7 {[%clk 0:02:57.7]} 5. Bg2 {[%clk 0:02:56.7]}
5... O-O {[%clk 0:02:58.2]} 6. O-O {[%clk 0:02:57.1]} 6... dxc4 {[%clk
0:02:57.1]} 7. Qc2 {[%clk 0:02:57.6]} 7... a6 {[%clk 0:02:56.2]} 8. a4 {[%clk
0:02:56.8]} 8... Bd7 {[%clk 0:02:55.8]} 9. Qxc4 {[%clk 0:02:56.5]} 9... Bc6
{[%clk 0:02:55.3]} 10. Bf4 {[%clk 0:02:54]} 10... Bd5 {[%clk 0:02:48.6]} 11. Qc1
{[%clk 0:02:47.2]} 11... Bd6 {[%clk 0:02:47]} 12. Nc3 {[%clk 0:02:46.1]} 12...
a5 {[%clk 0:02:35.5]} 13. Re1 {[%clk 0:02:41.9]} 13... Bxf3 {[%clk 0:02:32.9]}
14. Bxf3 {[%clk 0:02:41.5]} 14... Bxf4 {[%clk 0:02:31]} 15. Qxf4 {[%clk
0:02:40.8]} 15... c6 {[%clk 0:02:31.4]} 16. Rad1 {[%clk 0:02:33]} 16... Qb6
{[%clk 0:02:30]} 17. Rd2 {[%clk 0:02:21.7]} 17... Na6 {[%clk 0:02:28]} 18. e4
{[%clk 0:02:10.2]} 18... Rad8 {[%clk 0:02:25.5]} 19. Red1 {[%clk 0:02:10.4]}
19... Nb4 {[%clk 0:02:24.3]} 20. h4 {[%clk 0:02:06.5]} 20... Rd7 {[%clk
0:02:06.4]} 21. g4 {[%clk 0:02:03.8]} 21... Rfd8 {[%clk 0:02:02.7]} 22. g5
{[%clk 0:02:03.3]} 22... Ne8 {[%clk 0:02:00.1]} 23. e5 {[%clk 0:01:56.6]} 23...
Nd5 {[%clk 0:01:56.5]} 24. Bxd5 {[%clk 0:01:56.5]} 24... cxd5 {[%clk 0:01:54.5]}
25. h5 {[%clk 0:01:55.9]} 25... g6 {[%clk 0:01:25.8]} 26. Nb5 {[%clk 0:01:43.1]}
26... Ng7 {[%clk 0:01:19.1]} 27. h6 {[%clk 0:01:11.1]} 27... Nf5 {[%clk
0:01:10.5]} 28. Rc2 {[%clk 0:01:10.7]} 28... Re7 {[%clk 0:00:52.5]} 29. Rdc1
{[%clk 0:01:08.9]} 29... Red7 {[%clk 0:00:51.3]} 30. Qd2 {[%clk 0:01:08]} 30...
Re7 {[%clk 0:00:47.3]} 31. Rc8 {[%clk 0:01:06.4]} 31... Ree8 {[%clk 0:00:44.8]}
32. R8c7 {[%clk 0:01:04.2]} 32... Re7 {[%clk 0:00:42.5]} 33. R1c5 {[%clk
0:00:41.5]} 33... Rxc7 {[%clk 0:00:36.1]} 34. Rxc7 {[%clk 0:00:42.4]} 34... Rf8
{[%clk 0:00:26.8]} 35. Qc3 {[%clk 0:00:40.8]} 35... Qa6 {[%clk 0:00:24.8]} 36.
Qc5 {[%clk 0:00:38]} 36... Qa8 {[%clk 0:00:21.7]} 37. Qb6 {[%clk 0:00:29.5]}
37... Qd8 {[%clk 0:00:20.7]} 38. f4 {[%clk 0:00:26.4]} 38... Nxh6 {[%clk
0:00:20.7]} 39. Rxb7 {[%clk 0:00:23.6]} 39... Qxb6 {[%clk 0:00:16.4]} 40. Rxb6
{[%clk 0:00:23.5]} 40... Nf5 {[%clk 0:00:17.3]} 41. Rc6 {[%clk 0:00:17.3]} 41...
Rb8 {[%clk 0:00:16.8]} 42. Kf2 {[%clk 0:00:16.7]} 42... h6 {[%clk 0:00:16.6]}
43. gxh6 {[%clk 0:00:16.2]} 43... Nxh6 {[%clk 0:00:17.5]} 44. Ke2 {[%clk
0:00:15.2]} 44... Nf5 {[%clk 0:00:18.1]} 45. Kd3 {[%clk 0:00:14.5]} 45... Kg7
{[%clk 0:00:17.3]} 46. Rc7 {[%clk 0:00:13.9]} 46... Rh8 {[%clk 0:00:16.7]} 47.
Ra7 {[%clk 0:00:12.5]} 47... Rh3+ {[%clk 0:00:16.4]} 48. Kc2 {[%clk 0:00:12.8]}
48... Ne3+ {[%clk 0:00:15.1]} 49. Kb1 {[%clk 0:00:11.9]} 49... Nc4 {[%clk
0:00:15]} 50. Nd6 {[%clk 0:00:11.3]} 50... Rh1+ {[%clk 0:00:14.3]} 51. Ka2
{[%clk 0:00:10.9]} 51... Rh2 {[%clk 0:00:09.4]} 52. Nxc4 {[%clk 0:00:07.1]}
52... dxc4 {[%clk 0:00:08.8]} 53. Rc7 {[%clk 0:00:07.1]} 53... Rf2 {[%clk
0:00:06.7]} 54. Rxc4 {[%clk 0:00:07.4]} 54... Rxf4 {[%clk 0:00:07.3]} 55. b4
{[%clk 0:00:07.7]} 55... axb4 {[%clk 0:00:06.4]} 56. a5 {[%clk 0:00:08.1]} 56...
Rf3 {[%clk 0:00:05.5]} 57. Rxb4 {[%clk 0:00:07.1]} 57... Rg3 {[%clk 0:00:04.9]}
58. a6 {[%clk 0:00:06.4]} 58... Rh3 {[%clk 0:00:03.9]} 59. a7 {[%clk 0:00:06.1]}
59... Rh2+ {[%clk 0:00:03.3]} 60. Rb2 {[%clk 0:00:05.2]} 60... Rh8 {[%clk
0:00:02.7]} 61. Rb8 {[%clk 0:00:05.7]} 61... Rh2+ {[%clk 0:00:03.2]} 62. Kb3
{[%clk 0:00:05.2]} 62... Rh3+ {[%clk 0:00:03.3]} 63. Kb4 {[%clk 0:00:05.4]}
63... Rh1 {[%clk 0:00:02.7]} 64. a8=Q {[%clk 0:00:05.5]} 64... Rb1+ {[%clk
0:00:03.4]} 65. Kc3 {[%clk 0:00:05.1]} 65... Rc1+ {[%clk 0:00:03.3]} 66. Kd2
{[%clk 0:00:05.2]} 1-0

[Event "*** Titled Tuesday Blitz"]
[Site "Chess.com"]
[Date "2021.04.06"]
[Round "9"]
[White "GrigoriyM2001"]
[Black "K_A_S_T_O_R"]
[Result "1-0"]
[WhiteElo "2556"]
[BlackElo "2760"]
[TimeControl "180+1"]
[EndTime "11:47:13 PDT"]
[Termination "GrigoriyM2001 won by resignation"]

1. d4 {[%clk 0:03:00.9]} 1... d5 {[%clk 0:02:55.3]} 2. c4 {[%clk 0:03:00.7]}
2... c6 {[%clk 0:02:52.8]} 3. Nf3 {[%clk 0:03:00]} 3... Nf6 {[%clk 0:02:52.8]}
4. e3 {[%clk 0:03:00.5]} 4... Bg4 {[%clk 0:02:51.3]} 5. Nc3 {[%clk 0:02:59.8]}
5... e6 {[%clk 0:02:50.9]} 6. Qb3 {[%clk 0:02:59.3]} 6... Qc7 {[%clk 0:02:49.2]}
7. Ne5 {[%clk 0:02:58.8]} 7... Bf5 {[%clk 0:02:48.7]} 8. Be2 {[%clk 0:02:51.3]}
8... h5 {[%clk 0:02:32]} 9. Bd2 {[%clk 0:02:44.7]} 9... Nbd7 {[%clk 0:02:30.9]}
10. f4 {[%clk 0:02:41.2]} 10... Nxe5 {[%clk 0:02:24.9]} 11. fxe5 {[%clk
0:02:36.1]} 11... Ne4 {[%clk 0:02:24.9]} 12. Nxe4 {[%clk 0:02:33.6]} 12... Bxe4
{[%clk 0:02:24.5]} 13. O-O {[%clk 0:02:34]} 13... Be7 {[%clk 0:02:21.8]} 14. Bd3
{[%clk 0:02:28.5]} 14... Bxd3 {[%clk 0:02:17.5]} 15. Qxd3 {[%clk 0:02:29.4]}
15... Qd7 {[%clk 0:02:14.4]} 16. e4 {[%clk 0:02:12.5]} 16... dxc4 {[%clk
0:02:07.9]} 17. Qxc4 {[%clk 0:02:11.7]} 17... O-O {[%clk 0:02:07.8]} 18. Be3
{[%clk 0:02:07.5]} 18... f6 {[%clk 0:01:58.3]} 19. exf6 {[%clk 0:01:59.6]} 19...
Bxf6 {[%clk 0:01:56.5]} 20. Rad1 {[%clk 0:01:48.9]} 20... Rad8 {[%clk 0:01:55]}
21. Qc5 {[%clk 0:01:46]} 21... e5 {[%clk 0:01:48.8]} 22. d5 {[%clk 0:01:41.5]}
22... cxd5 {[%clk 0:01:42.3]} 23. Rxd5 {[%clk 0:01:39.6]} 23... Qg4 {[%clk
0:01:41.8]} 24. Qc4 {[%clk 0:01:10.1]} 24... Kh7 {[%clk 0:01:40.3]} 25. h3
{[%clk 0:01:03.9]} 25... Qg6 {[%clk 0:01:36.1]} 26. Bxa7 {[%clk 0:00:51.6]}
26... Rxd5 {[%clk 0:01:26.5]} 27. exd5 {[%clk 0:00:51]} 27... e4 {[%clk
0:01:23.5]} 28. Be3 {[%clk 0:00:45.1]} 28... Rd8 {[%clk 0:01:19]} 29. b3 {[%clk
0:00:41.8]} 29... Be5 {[%clk 0:01:18.2]} 30. Bf4 {[%clk 0:00:29.8]} 30... Bxf4
{[%clk 0:01:13.8]} 31. Rxf4 {[%clk 0:00:28.9]} 31... Re8 {[%clk 0:01:14.3]} 32.
Qe2 {[%clk 0:00:22.6]} 32... e3 {[%clk 0:01:09.9]} 33. Rf3 {[%clk 0:00:20.6]}
33... Qe4 {[%clk 0:01:06.3]} 34. d6 {[%clk 0:00:19.3]} 34... Qd4 {[%clk
0:01:06.3]} 35. d7 {[%clk 0:00:17.8]} 35... Qxd7 {[%clk 0:01:04.5]} 36. Rxe3
{[%clk 0:00:17.1]} 36... Rxe3 {[%clk 0:00:55.6]} 37. Qxe3 {[%clk 0:00:18]} 37...
Qd1+ {[%clk 0:00:54.8]} 38. Kh2 {[%clk 0:00:18.4]} 38... Qd6+ {[%clk 0:00:55.1]}
39. Qg3 {[%clk 0:00:18.1]} 39... Qc5 {[%clk 0:00:54.6]} 40. Qf3 {[%clk
0:00:18.3]} 40... b6 {[%clk 0:00:50.8]} 41. a4 {[%clk 0:00:18.7]} 41... Qb4
{[%clk 0:00:47.7]} 42. Qd3+ {[%clk 0:00:19.1]} 42... Kh6 {[%clk 0:00:46.8]} 43.
Qe3+ {[%clk 0:00:18.2]} 43... Kh7 {[%clk 0:00:46.2]} 44. Qd3+ {[%clk 0:00:11.5]}
44... Kh6 {[%clk 0:00:46.2]} 45. Qc4 {[%clk 0:00:12.1]} 45... Qd6+ {[%clk
0:00:44.4]} 46. Kg1 {[%clk 0:00:12.4]} 46... Qd1+ {[%clk 0:00:42.8]} 47. Kf2
{[%clk 0:00:13]} 47... Qd2+ {[%clk 0:00:42.7]} 48. Qe2 {[%clk 0:00:12.5]} 48...
Qf4+ {[%clk 0:00:41.9]} 49. Qf3 {[%clk 0:00:12.5]} 49... Qd2+ {[%clk 0:00:42]}
50. Kg1 {[%clk 0:00:12.7]} 50... Qe1+ {[%clk 0:00:39.8]} 51. Kh2 {[%clk
0:00:13.1]} 51... h4 {[%clk 0:00:35.3]} 52. Qf4+ {[%clk 0:00:12.8]} 52... Kh7
{[%clk 0:00:33.9]} 53. Qf5+ {[%clk 0:00:12.7]} 53... g6 {[%clk 0:00:33.2]} 54.
Qf7+ {[%clk 0:00:11.9]} 54... Kh6 {[%clk 0:00:33.4]} 55. Qf4+ {[%clk 0:00:11.9]}
55... Kh7 {[%clk 0:00:32.5]} 56. Qc7+ {[%clk 0:00:12.4]} 56... Kh6 {[%clk
0:00:31.9]} 57. Qxb6 {[%clk 0:00:12.8]} 57... Qg3+ {[%clk 0:00:27.7]} 58. Kh1
{[%clk 0:00:12.5]} 58... Qe1+ {[%clk 0:00:25.5]} 59. Qg1 {[%clk 0:00:13]} 59...
Qc3 {[%clk 0:00:21.1]} 60. Qb1 {[%clk 0:00:13]} 60... Qb4 {[%clk 0:00:20.4]} 61.
Qa1 {[%clk 0:00:09.5]} 61... Qxb3 {[%clk 0:00:16.8]} 62. a5 {[%clk 0:00:10]}
62... Qb8 {[%clk 0:00:15.2]} 63. a6 {[%clk 0:00:10.4]} 63... Qa7 {[%clk
0:00:15.5]} 64. Qa4 {[%clk 0:00:09.8]} 64... g5 {[%clk 0:00:11.2]} 65. Qc6+
{[%clk 0:00:09.1]} 65... Kh5 {[%clk 0:00:10.4]} 66. Qb7 {[%clk 0:00:09.1]} 1-0